fUST/lending_fUST_20250806
["ID","MTS","AMOUNT","RATE_DAILY","PERIOD"]
[377459425,1754416277959,-197.25,0.00029859,2]
[377459426,1754416277969,-460.0,0.00029863,2]
[377459427,1754416277978,-857.66,0.00029863,2]
[377459428,1754416277988,-663.23,0.00029863,2]
[377459429,1754416277997,-460.0,0.00029863,2]
[377459430,1754416278006,-658.86,0.00029863,2]
[377459431,1754416278015,-6772.75,0.00029863,2]
[377459432,1754416278025,-1541.2,0.00029863,2]
[377459433,1754416278035,-460.0,0.00029863,2]
[377459434,1754416278045,-812.68,0.00029863,2]
[377459435,1754416278055,-740.38,0.00029863,2]
[377459436,1754416278064,-1550.45,0.00029863,2]
[377459437,1754416278074,-532.66,0.00029863,2]
[377459438,1754416278084,-460.0,0.00029863,2]
[377459439,1754416278094,-1978.84,0.00029863,2]
[377459440,1754416278104,-1378.33,0.00029863,2]
[377459441,1754416278115,-460.0,0.00029863,2]
[377459442,1754416278125,-460.0,0.00029863,2]
[377459443,1754416278134,-467.99244875,0.00029863,2]
[377459444,1754416278144,-460.0,0.00029863,2]
[377459445,1754416278154,-460.0,0.00029863,2]
[377459446,1754416278164,-151.0,0.00029863,7]
[377459447,1754416278174,-613.34,0.00029863,2]
[377459448,1754416278184,-153.384366,0.00029863,7]
[377459449,1754416278194,-460.0,0.00029863,2]
[377459450,1754416278203,-460.0,0.00029863,2]
[377459451,1754416278213,-460.0,0.00029863,2]
[377459452,1754416278223,-460.0,0.00029863,2]
[377459453,1754416278234,-460.0,0.00029863,2]
[377459454,1754416278244,-460.0,0.00029863,2]
[377459455,1754416278254,-460.0,0.00029863,2]
[377459456,1754416278264,-460.0,0.00029863,2]
[377459457,1754416278273,-460.0,0.00029863,2]
[377459458,1754416278282,-460.0,0.00029863,2]
[377459459,1754416278291,-460.0,0.00029863,2]
[377459460,1754416278300,-460.0,0.00029863,2]
[377459461,1754416278310,-151.0,0.00029863,7]
[377459462,1754416278319,-1321.58,0.00029863,2]
[377459463,1754416278329,-460.0,0.00029863,2]
[377459464,1754416278339,-222.31398,0.00029863,7]
[377459465,1754416278351,-460.0,0.00029863,2]
[377459466,1754416278361,-222.31398,0.00029863,7]
[377459467,1754416278371,-1103.62,0.00029863,2]
[377459468,1754416278380,-460.0,0.00029863,2]
[377459469,1754416278391,-7164.38,0.00029863,2]
[377459470,1754416278402,-460.99,0.00029863,2]
[377459471,1754416278411,-460.0,0.00029863,2]
[377459472,1754416278421,-460.0,0.00029863,2]
[377459473,1754416278433,-460.0,0.00029863,2]
[377459474,1754416278443,-460.0,0.00029863,2]
[377459475,1754416278453,-91405.03,0.00029863,2]
[377459476,1754416278462,-460.0,0.00029863,2]
[377459477,1754416278472,-467.13404748,0.00029863,2]
[377459478,1754416278482,-1342.06,0.00029863,2]
[377459479,1754416278492,-460.0,0.00029863,2]
[377459480,1754416278502,-502.21,0.00029863,2]
[377459481,1754416278512,-500.0,0.00029863,2]
[377459482,1754416278521,-460.0,0.00029863,2]
[377459483,1754416278531,-1250.59,0.00029863,2]
[377459484,1754416278541,-1881.28,0.00029863,2]
[377459485,1754416278551,-824.53,0.00029863,2]
[377459486,1754416278562,-1138.15,0.00029863,2]
[377459487,1754416278572,-460.0,0.00029863,2]
[377459488,1754416278582,-3340.06,0.00029863,2]
[377459489,1754416278591,-460.0,0.00029863,2]
[377459490,1754416278602,-460.0,0.00029863,2]
[377459491,1754416278612,-460.0,0.00029863,2]
[377459492,1754416278622,-460.0,0.00029863,2]
[377459493,1754416278632,-460.0,0.00029863,2]
[377459494,1754416278643,-494.61,0.00029863,2]
[377459495,1754416278652,-460.0,0.00029863,2]
[377459496,1754416278662,-460.0,0.00029863,2]
[377459497,1754416278672,-567.26,0.00029863,2]
[377459498,1754416278682,-460.0,0.00029863,2]
[377459499,1754416278692,-460.0,0.00029863,2]
[377459500,1754416278702,-297.64655322,0.00029863,2]
[377459501,1754416278711,-1437.23,0.00029863,2]
[377459502,1754416278721,-2164.48,0.00029863,2]
[377459503,1754416278730,-1086.69,0.00029863,2]
[377459504,1754416278740,-1308.5,0.00029863,2]
[377459505,1754416278749,-460.0,0.00029863,2]
[377459506,1754416278758,-460.0,0.00029863,2]
[377459507,1754416278768,-460.0,0.00029863,2]
[377459508,1754416278779,-1242.29,0.00029863,2]
[377459509,1754416278789,-460.0,0.00029863,2]
[377459510,1754416278799,-460.0,0.00029863,2]
[377459511,1754416278809,-460.0,0.00029863,2]
[377459512,1754416278819,-738.23,0.00029863,2]
[377459513,1754416278828,-460.0,0.00029863,2]
[377459514,1754416278839,-460.0,0.00029863,2]
[377459515,1754416278850,-460.0,0.00029863,2]
[377459516,1754416278859,-1709.46,0.00029863,2]
[377459517,1754416278869,-6104.81,0.00029863,2]
[377459518,1754416278879,-1758.45,0.00029863,2]
[377459519,1754416278888,-460.0,0.00029863,2]
[377459520,1754416278898,-460.0,0.00029863,2]
[377459521,1754416278907,-902.91,0.00029863,2]
[377459522,1754416278917,-710.17,0.00029863,2]
[377459523,1754416278927,-1606.27,0.00029863,2]
[377459524,1754416278937,-819.41,0.00029863,2]
[377459525,1754416278946,-1844.87,0.00029863,2]
[377459526,1754416278955,-460.0,0.00029863,2]
[377459527,1754416278964,-460.0,0.00029863,2]
[377459528,1754416278974,-460.0,0.00029863,2]
[377459529,1754416278984,-467.64373844,0.00029863,2]
[377459530,1754416278994,-461.07784282,0.00029863,2]
[377459531,1754416279004,-881.55,0.00029863,2]
[377459532,1754416279013,-558.16,0.00029863,2]
[377459533,1754416279023,-460.0,0.00029863,2]
[377459534,1754416279032,-518.54,0.00029863,2]
[377459535,1754416279042,-460.0,0.00029863,2]
[377459536,1754416279052,-1561.24,0.00029863,2]
[377459537,1754416279062,-460.0,0.00029863,2]
[377459538,1754416279071,-460.0,0.00029863,2]
[377459539,1754416279080,-3008.19,0.00029863,2]
[377459540,1754416279091,-460.0,0.00029863,2]
[377459541,1754416279103,-460.0,0.00029863,2]
[377459542,1754416279113,-460.0,0.00029863,2]
[377459543,1754416279123,-844.75,0.00029863,2]
[377459544,1754416279132,-1209.84,0.00029863,2]
[377459545,1754416279142,-1526.12,0.00029863,2]
[377459546,1754416279151,-734.51,0.00029863,2]
[377459547,1754416279161,-460.0,0.00029863,2]
[377459548,1754416279171,-674.37,0.00029863,2]
[377459549,1754416279180,-460.0,0.00029863,2]
[377459550,1754416279190,-460.0,0.00029863,2]
[377459551,1754416279200,-844.14,0.00029863,2]
[377459552,1754416279209,-1000.34,0.00029863,2]
[377459553,1754416279219,-2193.9,0.00029863,2]
[377459554,1754416279229,-460.0,0.00029863,2]
[377459555,1754416279238,-460.0,0.00029863,2]
[377459556,1754416279248,-519.7,0.00029863,2]
[377459557,1754416279257,-460.0,0.00029863,2]
[377459558,1754416279267,-460.0,0.00029863,2]
[377459559,1754416279277,-464.88986533,0.00029863,2]
[377459560,1754416279286,-460.0,0.00029863,2]
[377459561,1754416279296,-748.97,0.00029863,2]
[377459562,1754416279306,-460.0,0.00029863,2]
[377459563,1754416279316,-460.0,0.00029863,2]
[377459564,1754416279325,-460.0,0.00029863,2]
[377459565,1754416279335,-3138.65,0.00029863,2]
[377459566,1754416279345,-489.33,0.00029863,2]
[377459567,1754416279359,-460.0,0.00029863,2]
[377459568,1754416279368,-460.0,0.00029863,2]
[377459569,1754416279377,-460.0,0.00029863,2]
[377459570,1754416279386,-460.0,0.00029863,2]
[377459571,1754416279397,-3180.74,0.00029863,2]
[377459572,1754416279406,-460.0,0.00029863,2]
[377459573,1754416279416,-1930.76,0.00029863,2]
[377459574,1754416279425,-2230.2,0.00029863,2]
[377459575,1754416279435,-460.0,0.00029863,2]
[377459576,1754416279445,-460.0,0.00029863,2]
[377459577,1754416279454,-460.0,0.00029863,2]
[377459578,1754416279463,-560.35,0.00029863,2]
[377459579,1754416279473,-727.87,0.00029863,2]
[377459580,1754416279482,-460.0,0.00029863,2]
[377459581,1754416279492,-460.0,0.00029863,2]
[377459582,1754416279501,-1127.9,0.00029863,2]
[377459583,1754416279510,-460.0,0.00029863,2]
[377459584,1754416279519,-460.0,0.00029863,2]
[377459585,1754416279528,-460.0,0.00029863,2]
[377459586,1754416279537,-460.0,0.00029863,2]
[377459587,1754416279546,-460.0,0.00029863,2]
[377459588,1754416279556,-1550.17,0.00029863,2]
[377459589,1754416279565,-460.0,0.00029863,2]
[377459590,1754416279574,-460.0,0.00029863,2]
[377459591,1754416279583,-569.87,0.00029863,2]
[377459592,1754416279593,-2106.63,0.00029863,2]
[377459593,1754416279604,-3854.83,0.00029863,2]
[377459594,1754416279613,-460.0,0.00029863,2]
[377459595,1754416279623,-714.24,0.00029863,2]
[377459596,1754416279633,-541.08,0.00029863,2]
[377459597,1754416279643,-495.9501556,0.00029864,5]
[377459598,1754416279651,-1850.40857557,0.00029864,5]
[377459599,1754416279661,-2500.0,0.00029864,5]
[377459600,1754416279670,-151.86,0.00029886,15]
[377459601,1754416279680,-158.687297,0.0002989,20]
[377459602,1754416279689,-560.0,0.00029892,2]
[377459603,1754416279698,-861.4469566,0.00029895,30]
[377459604,1754416279707,-153.24,0.00029896,15]
[377459605,1754416279716,-551.788,0.00029901,2]
[377459606,1754416279821,-410.804,0.00029901,2]
[377459607,1754416279830,-971.0,0.00029901,2]
[377459608,1754416279839,-2148.0,0.00029901,2]
[377459609,1754416279849,-636.0,0.00029901,2]
[377459610,1754416279858,-423.02448967,0.00029945,2]
[377459611,1754416279868,-198.95,0.00029956,15]
[377459612,1754416279877,-800.0,0.00029963,2]
[377459613,1754416279887,-2200.0,0.00029976,7]
[377459614,1754416279896,-151.86,0.00029986,15]
[377459615,1754416279906,-153.24,0.00029996,15]
[377459616,1754416279915,-157.06354814,0.0003,2]
[377459617,1754416279924,-10000.3547559,0.0003,3]
[377459618,1754416279933,-151.0,0.0003,7]
[377459619,1754416279942,-216.4206905,0.0003,7]
[377459620,1754416279951,-160.0,0.0003,7]
[377459621,1754416279961,-1500.0,0.0003,3]
[377459622,1754416279970,-151.61367767,0.0003,14]
[377459623,1754416279980,-4000.0,0.0003,4]
[377459624,1754416279989,-151.0,0.0003,14]
[377459625,1754416279999,-415.0,0.0003,14]
[377459626,1754416280010,-151.0,0.0003,14]
[377459627,1754416280020,-151.0,0.0003,14]
[377459628,1754416280029,-151.0,0.0003,14]
[377459629,1754416280038,-151.0,0.0003,14]
[377459630,1754416280048,-153.0,0.00030026,30]
[377459631,1754416280058,-1157.1921196,0.00030026,30]
[377459632,1754416280067,-414.1206365,0.00030027,30]
[377459633,1754416280077,-600.0,0.00030035,2]
[377459634,1754416280086,-198.95,0.00030056,15]
[377459635,1754416280095,-600.0,0.00030084,2]
[377459636,1754416280106,-151.86,0.00030086,15]
[377459637,1754416280115,-153.24,0.00030096,15]
[377459638,1754416280124,-1000.0,0.000301,2]
[377459639,1754416280134,-3000.0,0.00030112,5]
[377459640,1754416280143,-600.0,0.00030134,2]
[377459641,1754416280154,-574.59933092,0.00030136,2]
[377459642,1754416280163,-857.66,0.00030136,2]
[377459643,1754416280172,-663.23,0.00030136,2]
[377459644,1754416280182,-460.0,0.00030136,2]
[377459645,1754416280191,-658.86,0.00030136,2]
[377459646,1754416280200,-6772.75,0.00030136,2]
[377459647,1754416280210,-1541.2,0.00030136,2]
[377459648,1754416280219,-178.56,0.00030136,2]
[377459649,1754416280228,-812.68,0.00030136,2]
[377459650,1754416280237,-740.38,0.00030136,2]
[377459651,1754416280247,-1550.45,0.00030136,2]
[377459652,1754416280256,-532.66,0.00030136,2]
[377459653,1754416280265,-460.0,0.00030136,2]
[377459654,1754416280275,-1978.84,0.00030136,2]
[377459655,1754416280284,-1378.33,0.00030136,2]
[377459656,1754416280293,-460.0,0.00030136,2]
[377459657,1754416280302,-460.0,0.00030136,2]
[377459658,1754416280311,-460.0,0.00030136,2]
[377459659,1754416280320,-460.0,0.00030136,2]
[377459660,1754416280329,-613.34,0.00030136,2]
[377459661,1754416280338,-460.0,0.00030136,2]
[377459662,1754416280347,-460.0,0.00030136,2]
[377459663,1754416280359,-460.0,0.00030136,2]
[377459664,1754416280368,-460.0,0.00030136,2]
[377459665,1754416280378,-460.0,0.00030136,2]
[377459666,1754416280387,-460.0,0.00030136,2]
[377459667,1754416280398,-372.82788003,0.00030136,2]
[377459668,1754416280407,-460.0,0.00030136,2]
[377459669,1754416280416,-460.0,0.00030136,2]
[377459670,1754416280429,-460.0,0.00030136,2]
[377459671,1754416280438,-460.0,0.00030136,2]
[377459672,1754416280448,-460.0,0.00030136,2]
[377459673,1754416280457,-1321.58,0.00030136,2]
[377459674,1754416280466,-460.0,0.00030136,2]
[377459675,1754416280475,-460.0,0.00030136,2]
[377459676,1754416280485,-1103.62,0.00030136,2]
[377459677,1754416280495,-460.0,0.00030136,2]
[377459678,1754416280504,-151.0,0.00030136,7]
[377459679,1754416280513,-7164.38,0.00030136,2]
[377459680,1754416280522,-460.99,0.00030136,2]
[377459681,1754416280532,-189.96150134,0.00030136,2]
[377459682,1754416280541,-460.0,0.00030136,2]
[377459683,1754416280551,-407.26373,0.00030136,7]
[377459684,1754416280561,-460.0,0.00030136,2]
[377459685,1754416280570,-460.0,0.00030136,2]
[377459686,1754416280579,-407.26373,0.00030136,7]
[377459687,1754416280589,-91405.03,0.00030136,2]
[377459688,1754416280600,-460.0,0.00030136,2]
[377459689,1754416280610,-151.0,0.00030136,7]
[377459690,1754416280619,-1342.06,0.00030136,2]
[377459691,1754416280629,-151.0,0.00030136,7]
[377459692,1754416280639,-460.0,0.00030136,2]
[377459693,1754416280648,-502.21,0.00030136,2]
[377459694,1754416280657,-151.0,0.00030136,7]
[377459695,1754416280667,-500.0,0.00030136,2]
[377459696,1754416280676,-151.0,0.00030136,7]
[377459697,1754416280686,-1250.59,0.00030136,2]
[377459698,1754416280696,-460.0,0.00030136,2]
[377459699,1754416280705,-1881.28,0.00030136,2]
[377459700,1754416280714,-824.53,0.00030136,2]
[377459701,1754416280724,-1138.15,0.00030136,2]
[377459702,1754416280733,-460.0,0.00030136,2]
[377459703,1754416280742,-3340.06,0.00030136,2]
[377459704,1754416280751,-460.0,0.00030136,2]
[377459705,1754416280760,-460.0,0.00030136,2]
[377459706,1754416280770,-317.07535462,0.00030136,2]
[377459707,1754416280779,-460.0,0.00030136,2]
[377459708,1754416280788,-153.284981,0.00030136,7]
[377459709,1754416280798,-538.16046026,0.00030136,2]
[377459710,1754416280807,-494.61,0.00030136,2]
[377459711,1754416280816,-569.2,0.00030136,2]
[377459712,1754416280825,-460.0,0.00030136,2]
[377459713,1754416280835,-567.26,0.00030136,2]
[377459714,1754416280844,-467.53378666,0.00030136,2]
[377459715,1754416280855,-469.99399809,0.00030136,2]
[377459716,1754416280864,-1437.23,0.00030136,2]
[377459717,1754416280873,-2164.48,0.00030136,2]
[377459718,1754416280882,-1086.69,0.00030136,2]
[377459719,1754416280891,-1308.5,0.00030136,2]
[377459720,1754416280900,-460.0,0.00030136,2]
[377459721,1754416280910,-460.0,0.00030136,2]
[377459722,1754416280919,-460.0,0.00030136,2]
[377459723,1754416280928,-1242.29,0.00030136,2]
[377459724,1754416280937,-460.0,0.00030136,2]
[377459725,1754416280946,-460.0,0.00030136,2]
[377459726,1754416280955,-151.0,0.00030136,7]
[377459727,1754416280964,-460.0,0.00030136,2]
[377459728,1754416280974,-738.23,0.00030136,2]
[377459729,1754416280983,-460.0,0.00030136,2]
[377459730,1754416280992,-460.0,0.00030136,2]
[377459731,1754416281002,-460.0,0.00030136,2]
[377459732,1754416281011,-1709.46,0.00030136,2]
[377459733,1754416281021,-6104.81,0.00030136,2]
[377459734,1754416281030,-1758.45,0.00030136,2]
[377459735,1754416281039,-181.88151,0.00030136,7]
[377459736,1754416281048,-460.0,0.00030136,2]
[377459737,1754416281058,-902.91,0.00030136,2]
[377459738,1754416281067,-460.0,0.00030136,2]
[377459739,1754416281077,-181.88151,0.00030136,7]
[377459740,1754416281086,-710.17,0.00030136,2]
[377459741,1754416281096,-1606.27,0.00030136,2]
[377459742,1754416281106,-819.41,0.00030136,2]
[377459743,1754416281115,-1844.87,0.00030136,2]
[377459744,1754416281125,-465.19542519,0.00030136,2]
[377459745,1754416281134,-460.0,0.00030136,2]
[377459746,1754416281143,-460.0,0.00030136,2]
[377459747,1754416281152,-881.55,0.00030136,2]
[377459748,1754416281162,-558.16,0.00030136,2]
[377459749,1754416281171,-460.0,0.00030136,2]
[377459750,1754416281181,-518.54,0.00030136,2]
[377459751,1754416281190,-460.0,0.00030136,2]
[377459752,1754416281200,-175.0,0.00030136,7]
[377459753,1754416281209,-1561.24,0.00030136,2]
[377459754,1754416281219,-175.0,0.00030136,7]
[377459755,1754416281228,-460.0,0.00030136,2]
[377459756,1754416281238,-3008.19,0.00030136,2]
[377459757,1754416281247,-460.0,0.00030136,2]
[377459758,1754416281256,-460.0,0.00030136,2]
[377459759,1754416281268,-460.0,0.00030136,2]
[377459760,1754416281277,-460.0,0.00030136,2]
[377459761,1754416281287,-844.75,0.00030136,2]
[377459762,1754416281297,-1209.84,0.00030136,2]
[377459763,1754416281307,-1526.12,0.00030136,2]
[377459764,1754416281316,-460.0,0.00030136,2]
[377459765,1754416281325,-734.51,0.00030136,2]
[377459766,1754416281335,-674.37,0.00030136,2]
[377459767,1754416281345,-460.0,0.00030136,2]
[377459768,1754416281361,-460.0,0.00030136,2]
[377459769,1754416281370,-844.14,0.00030136,2]
[377459770,1754416281379,-1000.34,0.00030136,2]
[377459771,1754416281389,-2193.9,0.00030136,2]
[377459772,1754416281399,-460.0,0.00030136,2]
[377459773,1754416281409,-249.450475,0.00030136,7]
[377459774,1754416281418,-460.0,0.00030136,2]
[377459775,1754416281428,-519.7,0.00030136,2]
[377459776,1754416281437,-249.450475,0.00030136,7]
[377459777,1754416281447,-460.0,0.00030136,2]
[377459778,1754416281457,-460.0,0.00030136,2]
[377459779,1754416281468,-748.97,0.00030136,2]
[377459780,1754416281477,-460.0,0.00030136,2]
[377459781,1754416281487,-460.0,0.00030136,2]
[377459782,1754416281496,-464.94060883,0.00030136,2]
[377459783,1754416281506,-3138.65,0.00030136,2]
[377459784,1754416281516,-489.33,0.00030136,2]
[377459785,1754416281526,-460.0,0.00030136,2]
[377459786,1754416281535,-460.0,0.00030136,2]
[377459787,1754416281545,-460.0,0.00030136,2]
[377459788,1754416281555,-460.0,0.00030136,2]
[377459789,1754416281566,-3180.74,0.00030136,2]
[377459790,1754416281575,-460.0,0.00030136,2]
[377459791,1754416281585,-1930.76,0.00030136,2]
[377459792,1754416281690,-2230.2,0.00030136,2]
[377459793,1754416281700,-460.0,0.00030136,2]
[377459794,1754416281710,-460.0,0.00030136,2]
[377459795,1754416281719,-460.0,0.00030136,2]
[377459796,1754416281728,-727.87,0.00030136,2]
[377459797,1754416281737,-560.35,0.00030136,2]
[377459798,1754416281747,-460.0,0.00030136,2]
[377459799,1754416281757,-1127.9,0.00030136,2]
[377459800,1754416281766,-460.0,0.00030136,2]
[377459801,1754416281776,-460.0,0.00030136,2]
[377459802,1754416281786,-460.0,0.00030136,2]
[377459803,1754416281795,-460.0,0.00030136,2]
[377459804,1754416281804,-460.0,0.00030136,2]
[377459805,1754416281814,-460.0,0.00030136,2]
[377459806,1754416281823,-1550.17,0.00030136,2]
[377459807,1754416281832,-460.0,0.00030136,2]
[377459808,1754416281841,-460.0,0.00030136,2]
[377459809,1754416281852,-569.87,0.00030136,2]
[377459810,1754416281861,-2106.63,0.00030136,2]
[377459811,1754416281871,-3854.83,0.00030136,2]
[377459812,1754416281880,-460.0,0.00030136,2]
[377459813,1754416281890,-714.24,0.00030136,2]
[377459814,1754416281900,-541.08,0.00030136,2]
[377459815,1754416281909,-54614.5168398,0.00030137,2]
[377459816,1754416281918,-155.87983,0.00030137,7]
[377459817,1754416281927,-151.0,0.00030137,7]
[377459818,1754416281936,-151.0,0.00030137,7]
[377459819,1754416281945,-151.0,0.00030137,7]
[377459820,1754416281955,-151.0,0.00030137,7]
[377459821,1754416281965,-180.51515,0.00030137,7]
[377459822,1754416281976,-151.0,0.00030137,7]
[377459823,1754416281986,-151.0,0.00030137,7]
[377459824,1754416281996,-1712.627473,0.00030137,7]
[377459825,1754416282006,-1712.627473,0.00030137,7]
[377459826,1754416282016,-800.0,0.00030148,2]
[377459827,1754416282026,-800.0,0.00030156,2]
[377459828,1754416282036,-198.95,0.00030156,15]
[377459829,1754416282047,-800.0,0.00030172,2]
[377459830,1754416282058,-679.3,0.00030181,7]
[377459831,1754416282068,-151.86,0.00030186,15]
[377459832,1754416282077,-153.24,0.00030196,15]
[377459833,1754416282087,-800.0,0.00030213,2]
[377459834,1754416282096,-800.0,0.00030214,2]
[377459835,1754416282106,-800.0,0.00030217,2]
[377459836,1754416282115,-800.0,0.00030229,2]
[377459837,1754416282125,-800.0,0.00030239,2]
[377459838,1754416282134,-157.06354814,0.00030247,2]
[377459839,1754416282144,-198.95,0.00030256,15]
[377459840,1754416282154,-23009.51934145,0.00030272,2]
[377459841,1754416282164,-151.2598,0.00030274,2]
[377459842,1754416282173,-151.86,0.00030286,15]
[377459843,1754416282183,-153.24,0.00030296,15]
[377459844,1754416282192,-9002.51843116,0.000303,2]
[377459845,1754416282201,-800.0,0.00030311,2]
[377459846,1754416282210,-800.0,0.00030334,2]
[377459847,1754416282219,-500.0,0.00030334,5]
[377459848,1754416282228,-800.0,0.00030345,2]
[377459849,1754416282237,-198.95,0.00030356,15]
[377459850,1754416282246,-800.0,0.00030364,2]
[377459851,1754416282256,-200.0,0.0003038,26]
[377459852,1754416282265,-800.0,0.00030381,2]
[377459853,1754416282274,-151.86,0.00030386,15]
[377459854,1754416282283,-152.0,0.00030388,7]
[377459855,1754416282293,-152.0,0.00030388,7]
[377459856,1754416282302,-152.0,0.00030388,7]
[377459857,1754416282311,-1758.0,0.00030388,7]
[377459858,1754416282320,-152.0,0.00030388,7]
[377459859,1754416282329,-1758.0,0.00030388,7]
[377459860,1754416282339,-152.0,0.00030388,7]
[377459861,1754416282351,-152.0,0.00030388,7]
[377459862,1754416282361,-152.0,0.00030388,7]
[377459863,1754416282370,-1758.0,0.00030388,7]
[377459864,1754416282380,-1758.0,0.00030388,7]
[377459865,1754416282390,-152.0,0.00030388,7]
[377459866,1754416282401,-1758.0,0.00030388,7]
[377459867,1754416282411,-152.0,0.00030388,7]
[377459868,1754416282420,-1756.0,0.00030388,7]
[377459869,1754416282431,-152.0,0.00030388,7]
[377459870,1754416282440,-152.0,0.00030388,7]
[377459871,1754416282449,-152.0,0.00030388,7]
[377459872,1754416282458,-152.0,0.00030388,7]
[377459873,1754416282468,-325.0,0.00030388,7]
[377459874,1754416282477,-325.0,0.00030388,7]
[377459875,1754416282487,-325.0,0.00030388,7]
[377459876,1754416282496,-325.0,0.00030388,7]
[377459877,1754416282505,-325.0,0.00030388,7]
[377459878,1754416282515,-325.0,0.00030388,7]
[377459879,1754416282524,-325.0,0.00030388,7]
[377459880,1754416282533,-325.0,0.00030388,7]
[377459881,1754416282542,-325.0,0.00030388,7]
[377459882,1754416282551,-325.0,0.00030388,7]
[377459883,1754416282562,-325.0,0.00030388,7]
[377459884,1754416282571,-325.0,0.00030388,7]
[377459885,1754416282582,-316.85729207,0.00030388,7]
[377459886,1754416282592,-166.0,0.00030392,7]
[377459887,1754416282602,-166.0,0.00030392,7]
[377459888,1754416282612,-166.0,0.00030392,7]
[377459889,1754416282622,-160.0,0.00030392,7]
[377459890,1754416282632,-160.0,0.00030392,7]
[377459891,1754416282642,-166.0,0.00030392,7]
[377459892,1754416282651,-160.0,0.00030392,7]
[377459893,1754416282661,-160.0,0.00030392,7]
[377459894,1754416282670,-166.0,0.00030392,7]
[377459895,1754416282679,-162.70663404,0.00030392,7]
[377459896,1754416282689,-166.0,0.00030392,7]
[377459897,1754416282698,-172.0,0.00030392,7]
[377459898,1754416282707,-166.0,0.00030392,7]
[377459899,1754416282717,-172.0,0.00030392,7]
[377459900,1754416282726,-166.0,0.00030392,7]
[377459901,1754416282735,-172.0,0.00030392,7]
[377459902,1754416282745,-172.0,0.00030392,7]
[377459903,1754416282754,-174.25906298,0.00030392,7]
[377459904,1754416282763,-152.0,0.00030392,7]
[377459905,1754416282773,-152.0,0.00030392,7]
[377459906,1754416282782,-152.0,0.00030392,7]
[377459907,1754416282791,-152.0,0.00030392,7]
[377459908,1754416282801,-152.0,0.00030392,7]
[377459909,1754416282810,-1758.0,0.00030392,7]
[377459910,1754416282819,-152.0,0.00030392,7]
[377459911,1754416282828,-1758.0,0.00030392,7]
[377459912,1754416282838,-152.0,0.00030392,7]
[377459913,1754416282848,-1758.0,0.00030392,7]
[377459914,1754416282857,-152.0,0.00030392,7]
[377459915,1754416282867,-1758.0,0.00030392,7]
[377459916,1754416282876,-152.0,0.00030392,7]
[377459917,1754416282886,-1758.0,0.00030392,7]
[377459918,1754416282895,-152.0,0.00030392,7]
[377459919,1754416282904,-152.0,0.00030392,7]
[377459920,1754416282914,-152.0,0.00030392,7]
[377459921,1754416282923,-152.0,0.00030392,7]
[377459922,1754416282934,-1758.0,0.00030392,7]
[377459923,1754416282943,-152.0,0.00030392,7]
[377459924,1754416282953,-1758.0,0.00030392,7]